fUSD/lending_fUSD_20250426
["ID","MTS","AMOUNT","RATE_DAILY","PERIOD"]
[359037760,1745665847147,-500.0,0.00019983,2]
[359037761,1745665847157,-661.14,0.00019983,2]
[359037762,1745665847166,-693.03,0.00019983,2]
[359037763,1745665847176,-1000.0,0.00019985,2]
[359037764,1745665847186,-34716.7043126,0.00019986,2]
[359037765,1745665847199,-1356.7139096,0.00019986,2]
[359037766,1745665847209,-8422.4368121,0.00019986,2]
[359037767,1745665847219,-3180.5736871,0.00019986,2]
[359037768,1745665847231,-2735.0790566,0.00019986,2]
[359037769,1745665847243,-5755.4331202,0.00019986,2]
[359037770,1745665847252,-84337.875254,0.00019986,2]
[359037771,1745665847263,-170087.99325804,0.00019993,2]
[359037772,1745665847273,-661.14,0.00019998,2]
[359037773,1745665847284,-693.03,0.00019998,2]
[359037774,1745665847294,-1306.0,0.00019999,2]
[359037775,1745665847304,-300.0,0.00019999,2]
[359037776,1745665847314,-500.0,0.00019999,2]
[359037777,1745665847324,-666.0,0.00019999,2]
[359037778,1745665847334,-629.738129,0.00019999,2]
[359037779,1745665847344,-300.0,0.00019999,2]
[359037780,1745665847354,-151.0,0.00019999,2]
[359037781,1745665847364,-685.78458746,0.00019999,2]
[359037782,1745665847375,-661.14,0.00019999,2]
[359037783,1745665847384,-661.14,0.00019999,2]
[359037784,1745665847394,-661.14,0.00019999,2]
[359037785,1745665847403,-661.14,0.00019999,2]
[359037786,1745665847413,-661.14,0.00019999,2]
[359037787,1745665847423,-661.14,0.00019999,2]
[359037788,1745665847434,-661.14,0.00019999,2]
[359037789,1745665847445,-661.14,0.00019999,2]
[359037790,1745665847456,-661.14,0.00019999,2]
[359037791,1745665847465,-661.14,0.00019999,2]
[359037792,1745665847476,-661.14,0.00019999,2]
[359037793,1745665847485,-661.14,0.00019999,2]
[359037794,1745665847497,-661.14,0.00019999,2]
[359037795,1745665847508,-661.14,0.00019999,2]
[359037796,1745665847520,-661.14,0.00019999,2]
[359037797,1745665847530,-661.14,0.00019999,2]
[359037798,1745665847541,-661.14,0.00019999,2]
[359037799,1745665847550,-661.14,0.00019999,2]
[359037800,1745665847560,-661.15084152,0.00019999,2]
[359037801,1745665847570,-480404.04309906,0.00019999,2]
[359037802,1745665847580,-693.03,0.00019999,2]
[359037803,1745665847590,-693.03,0.00019999,2]
[359037804,1745665847599,-693.03,0.00019999,2]
[359037805,1745665847609,-693.03,0.00019999,2]
[359037806,1745665847619,-693.03,0.00019999,2]
[359037807,1745665847628,-693.03,0.00019999,2]
[359037808,1745665847638,-693.03,0.00019999,2]
[359037809,1745665847647,-693.03,0.00019999,2]
[359037810,1745665847656,-693.03,0.00019999,2]
[359037811,1745665847666,-693.03,0.00019999,2]
[359037812,1745665847676,-693.03,0.00019999,2]
[359037813,1745665847686,-693.03,0.00019999,2]
[359037814,1745665847695,-693.03,0.00019999,2]
[359037815,1745665847707,-693.03,0.00019999,2]
[359037816,1745665847716,-693.03,0.00019999,2]
[359037817,1745665847726,-693.03,0.00019999,2]
[359037818,1745665847735,-693.03,0.00019999,2]
[359037819,1745665847745,-693.03,0.00019999,2]
[359037820,1745665847756,-693.26921698,0.00019999,2]
[359037821,1745665847766,-164.438316,0.00019999,2]
[359037822,1745665847776,-766.71,0.00019999,2]
[359037823,1745665847785,-500.0,0.00019999,2]
[359037824,1745665847795,-9009.61526,0.00019999,2]
[359037825,1745665847807,-500.0,0.00019999,2]
[359037826,1745665847817,-642.42,0.00019999,2]
[359037827,1745665847827,-1144.14,0.00019999,2]
[359037828,1745665847837,-891.878653,0.00019999,2]
[359037829,1745665847847,-3116.48,0.00019999,2]
[359037830,1745665847857,-500.0,0.00019999,2]
[359037831,1745665847866,-900.301598,0.00019999,2]
[359037832,1745665847876,-586.74,0.00019999,2]
[359037833,1745665847885,-166.423983,0.00019999,2]
[359037834,1745665847895,-500.0,0.00019999,2]
[359037835,1745665847904,-673.23,0.00019999,2]
[359037836,1745665847915,-501.83,0.00019999,2]
[359037837,1745665847926,-500.15,0.00019999,2]
[359037838,1745665847936,-532.65,0.00019999,2]
[359037839,1745665847946,-500.0,0.00019999,2]
[359037840,1745665847959,-3811.36,0.00019999,2]
[359037841,1745665847969,-691.38,0.00019999,2]
[359037842,1745665847978,-500.0,0.00019999,2]
[359037843,1745665847988,-548.44,0.00019999,2]
[359037844,1745665848000,-500.0,0.00019999,2]
[359037845,1745665848010,-975.6,0.00019999,2]
[359037846,1745665848019,-974.4,0.00019999,2]
[359037847,1745665848029,-500.0,0.00019999,2]
[359037848,1745665848039,-500.0,0.00019999,2]
[359037849,1745665848049,-500.0,0.00019999,2]
[359037850,1745665848058,-500.0,0.00019999,2]
[359037851,1745665848068,-735.59,0.00019999,2]
[359037852,1745665848077,-522.76,0.00019999,2]
[359037853,1745665848087,-857.46,0.00019999,2]
[359037854,1745665848097,-400.0,0.00019999,2]
[359037855,1745665848106,-529.83,0.00019999,2]
[359037856,1745665848209,-849.08,0.00019999,2]
[359037857,1745665848219,-400.0,0.00019999,2]
[359037858,1745665848228,-594.8,0.00019999,2]
[359037859,1745665848239,-825.73,0.00019999,2]
[359037860,1745665848248,-1098.17,0.00019999,2]
[359037861,1745665848257,-400.0,0.00019999,2]
[359037862,1745665848267,-400.0,0.00019999,2]
[359037863,1745665848277,-400.0,0.00019999,2]
[359037864,1745665848286,-907.23,0.00019999,2]
[359037865,1745665848297,-654.99,0.00019999,2]
[359037866,1745665848306,-908.41,0.00019999,2]
[359037867,1745665848316,-577.47,0.00019999,2]
[359037868,1745665848327,-589.25,0.00019999,2]
[359037869,1745665848336,-1363.18,0.00019999,2]
[359037870,1745665848346,-744.08,0.00019999,2]
[359037871,1745665848356,-421.19,0.00019999,2]
[359037872,1745665848366,-750.88,0.00019999,2]
[359037873,1745665848376,-447.57,0.00019999,2]
[359037874,1745665848386,-887.48,0.00019999,2]
[359037875,1745665848396,-9666.13,0.00019999,2]
[359037876,1745665848406,-512.74,0.00019999,2]
[359037877,1745665848416,-656.61,0.00019999,2]
[359037878,1745665848426,-1150.24,0.00019999,2]
[359037879,1745665848436,-400.0,0.00019999,2]
[359037880,1745665848446,-400.0,0.00019999,2]
[359037881,1745665848458,-400.0,0.00019999,2]
[359037882,1745665848468,-447.29,0.00019999,2]
[359037883,1745665848478,-851.66,0.00019999,2]
[359037884,1745665848488,-400.0,0.00019999,2]
[359037885,1745665848498,-619.86,0.00019999,2]
[359037886,1745665848508,-601.85,0.00019999,2]
[359037887,1745665848518,-413.47,0.00019999,2]
[359037888,1745665848528,-713.93,0.00019999,2]
[359037889,1745665848537,-985.44,0.00019999,2]
[359037890,1745665848547,-500.0,0.00019999,2]
[359037891,1745665848558,-500.0,0.00019999,2]
[359037892,1745665848567,-616.66,0.00019999,2]
[359037893,1745665848578,-400.0,0.00019999,2]
[359037894,1745665848587,-242586.44395215,0.0002,2]
[359037895,1745665849072,-281772.62460718,0.0002,2]
[359037896,1745665849083,-798.1465746,0.0002,2]
[359037897,1745665849093,-1000.0,0.0002,2]
[359037898,1745665849103,-10559.92378267,0.0002,2]
[359037899,1745665849112,-5000.0,0.0002,2]
[359037900,1745665849123,-490.3477,0.0002,2]
[359037901,1745665849133,-1055245.748393,0.0002,2]
[359037902,1745665849144,-2813.57906416,0.0002,2]
[359037903,1745665849168,-1548.13312365,0.0002,2]
[359037904,1745665849180,-590.08296798,0.0002,2]
[359037905,1745665849191,-1464.11818924,0.0002,2]
[359037906,1745665849208,-2547.105,0.0002,2]
[359037907,1745665849225,-20000.0,0.0002,2]
[359037908,1745665849246,-824.93485951,0.0002,2]
[359037909,1745665849564,-500.0,0.00019791,2]
[359037910,1745665849574,-500.0,0.0002,2]
[359037911,1745665849600,-8892.98674496,0.0002,2]
[359037912,1745665849611,-9096.64373114,0.0002,2]
[359037913,1745665849622,-8947.21879473,0.0002,2]
[359037914,1745665849635,-8943.78386462,0.0002,2]
[359037915,1745665849647,-9077.54866152,0.0002,2]
[359037916,1745665849659,-8943.84023489,0.0002,2]
[359037917,1745665849672,-494.99999995,0.0002,2]
[359037918,1745665849690,-654.839996,0.00019791,2]
[359037919,1745665849713,-180.070004,0.00019791,2]
[359037920,1745665849722,-661.64749929,0.0002,2]
[359037921,1745665849742,-3774.02156697,0.0002,2]
[359037922,1745665849754,-6223.95118919,0.0002,2]
[359037923,1745665849765,-500.0,0.0002,2]
[359037924,1745665849776,-577.46205938,0.0002,2]
[359037925,1745665849788,-9854.64352264,0.0002,2]
[359037926,1745665849801,-6492.98264759,0.0002,2]
[359037927,1745665849813,-885.94797548,0.0002,2]
[359037928,1745665851559,-867.89771197,0.0002,2]
[359037929,1745665851570,-625.26010037,0.0002,2]
[359037930,1745665851582,-741.29069357,0.0002,2]
[359037931,1745665851604,-490.0,0.0002,2]
[359037932,1745665851615,-1028.93609989,0.0002,2]
[359037933,1745665851627,-682.60523184,0.0002,2]
[359037934,1745665851638,-1034.355,0.0002,2]
[359037935,1745665852516,-400.0,0.00019791,2]
[359037936,1745665852526,-500.0,0.00019999,2]
[359037937,1745665852536,-500.0,0.00019999,2]
[359037938,1745665852546,-400.0,0.00019999,2]
[359037939,1745665852556,-573.44,0.00019999,2]
[359037940,1745665852566,-17677.0881298,0.0002,2]
[359037941,1745665852582,-506.62630079,0.0002,2]
[359037942,1745665852593,-352.72799642,0.0002,2]
[359037943,1745665852605,-631.44,0.0002,2]
[359037944,1745665852616,-1356.4999996,0.0002,2]
[359037945,1745665852628,-2513.09890421,0.0002,2]
[359037946,1745665852639,-485.305,0.0002,2]
[359037947,1745665852655,-592.26600014,0.0002,2]
[359037948,1745665852666,-1849.17996934,0.0002,2]
[359037949,1745665852678,-2502.79362458,0.0002,2]
[359037950,1745665852691,-2903.04000028,0.0002,2]
[359037951,1745665852703,-1499.756,0.0002,2]
[359037952,1745665852722,-10937.10514328,0.0002,2]
[359037953,1745665852734,-9652.48560775,0.0002,2]
[359037954,1745665852748,-471.928098,0.0002,2]
[359037955,1745665852775,-450.0,0.0002,2]
[359037956,1745665852787,-2066.8021701,0.0002,2]
[359037957,1745665853160,-151.0,0.00019896,2]
[359037958,1745665853170,-1375.77504163,0.0002,2]
[359037959,1745665853182,-1513.43688062,0.0002,2]
[359037960,1745665853201,-536.91118955,0.0002,2]
[359037961,1745665853213,-320.2207373,0.0002,2]
[359037962,1745665853231,-2508.77207442,0.0002,2]
[359037963,1745665853243,-10211.94307124,0.0002,2]
[359037964,1745665853255,-120132.95978371,0.0002,2]
[359037965,1745665853615,-500.0,0.00019791,2]
[359037966,1745665853626,-4645.74696976,0.0002,2]
[359037967,1745665853639,-492.73828042,0.0002,2]
[359037968,1745665853651,-942.762,0.0002,2]
[359037969,1745665853663,-1417.56443875,0.0002,2]
[359037970,1745665853676,-467.96961399,0.0002,2]
[359037971,1745665853694,-320.88518956,0.0002,2]
[359037972,1745665855197,150.89074545,0.00019791,5]
[359037973,1745665865676,900.03281709,0.00029459,30]
[359037976,1745665971507,-500.0,0.00019783,2]
[359037977,1745665971533,-300.0,0.0001979,2]
[359037978,1745665971560,-500.0,0.00019791,2]
[359037979,1745665971583,-474.38,0.00019791,2]
[359037980,1745665971608,-400.0,0.00019791,2]
[359037981,1745665971631,-400.0,0.00019791,2]
[359037982,1745665971654,-500.0,0.00019791,2]
[359037983,1745665971677,-400.0,0.00019791,2]
[359037984,1745665971699,-400.0,0.00019791,2]
[359037985,1745665971723,-400.0,0.00019791,2]
[359037986,1745665971747,-573.0,0.00019791,2]
[359037987,1745665971771,-3973.82,0.00019791,2]
[359037988,1745665971795,-400.0,0.00019791,2]
[359037989,1745665971818,-400.0,0.00019791,2]
[359037990,1745665971841,-410.88,0.00019791,2]
[359037991,1745665971865,-400.0,0.00019791,2]
[359037992,1745665971888,-400.0,0.00019791,2]
[359037993,1745665971912,-461.94,0.00019791,2]
[359037994,1745665971936,-400.0,0.00019791,2]
[359037995,1745665971960,-700.13,0.00019791,2]
[359037996,1745665971985,-1007.93,0.00019791,2]
[359037997,1745665972009,-5928.51,0.00019791,2]
[359037998,1745665972032,-515.39,0.00019791,2]
[359037999,1745665972055,-400.0,0.00019791,2]
[359038000,1745665972081,-728.09,0.00019791,2]
[359038001,1745665972105,-400.0,0.00019791,2]
[359038002,1745665972131,-1349.94,0.00019791,2]
[359038003,1745665972159,-484.22,0.00019791,2]
[359038004,1745665972184,-753.6,0.00019791,2]
[359038005,1745665972206,-992.43,0.00019791,2]
[359038006,1745665972229,-400.0,0.00019791,2]
[359038007,1745665972257,-1016.69,0.00019791,2]
[359038008,1745665972282,-400.0,0.00019791,2]
[359038009,1745665972306,-1076.02,0.00019791,2]
[359038010,1745665972332,-491.84,0.00019791,2]
[359038011,1745665972355,-542.28696134,0.00019791,2]
[359038012,1745665972378,-589.95,0.00019791,2]
[359038013,1745665972400,-400.0,0.00019791,2]
[359038014,1745665972424,-505.08,0.00019791,2]
[359038015,1745665972447,-806.25,0.00019791,2]
[359038016,1745665972471,-400.0,0.00019791,2]
[359038017,1745665972496,-400.0,0.00019791,2]
[359038018,1745665972521,-400.0,0.00019791,2]
[359038019,1745665972543,-500.0,0.00019791,2]
[359038020,1745665972567,-667.38,0.00019791,2]
[359038021,1745665972589,-494.74,0.00019791,2]
[359038022,1745665972612,-632.2,0.00019791,2]
[359038023,1745665972635,-7277.30303866,0.00019791,2]
[359038024,1745665995454,23900.0,0.00019071,2]
[359038025,1745666033099,-179.88602965,0.00019691,2]
[359038026,1745666034892,250.0,0.00017,2]
[359038027,1745666035594,300.0,0.00019,2]
[359038028,1745666116411,-226.4037,0.00019592,2]
[359038029,1745666161333,1000.0,0.00018996,2]
[359038030,1745666164070,-197.65509821,0.00019592,2]
[359038031,1745666192741,-161.33106,0.00019494,2]
[359038032,1745666247296,174.38,0.0001518,2]
[359038034,1745666284389,-152.0,0.00019642,2]
[359038035,1745666338322,1588.1979173,0.00018,2]
[359038036,1745666417675,-168.96440878,0.00019292,2]
[359038037,1745666452037,2607.49,0.00018905,2]
[359038038,1745666452719,-175.41866612,0.00019292,2]
[359038039,1745666459148,554.05334548,0.00037808,120]
[359038040,1745666574835,1129.39,0.00016966,2]
[359038041,1745666575051,1129.39,0.0001923,2]
[359038042,1745666575894,-48.0,0.00019642,2]
[359038043,1745666575917,-135.43379091,0.00019666,2]
[359038044,1745666643344,-166.08,0.00019678,2]
[359038045,1745666706435,200.0,0.00018903,2]
[359038046,1745666727791,198.22267603,0.00011,2]
[359038047,1745666728791,-83.92,0.00019678,2]
[359038048,1745666793116,807.05,0.00018888,2]
[359038049,1745666818588,163.82,0.00018892,2]
[359038050,1745666819763,-291.97737678,0.0001968,2]
[359038061,1745666840086,818.15,0.00018885,2]
[359038063,1745666873281,784.74,0.00018858,2]
[359038064,1745666903853,625.95312878,0.00019212,2]
[359038065,1745666905020,-241.01131161,0.00019561,2]
[359038066,1745666907910,267.43,0.00018869,2]
[359038067,1745666908617,544.91,0.00018869,2]
[359038068,1745666916375,307.17,0.00018861,2]
[359038069,1745666917458,-163.0225219,0.00019561,2]
[359038092,1745667032727,-1.70470326,0.00019608,2]
[359038125,1745667033053,-263.06452443,0.00019608,2]
[359038127,1745667033299,-264.76922768,0.0001965,2]
[359038129,1745667033311,-1325.75222055,0.0001968,2]
[359038131,1745667033321,-264.76922768,0.00019691,2]
[359038133,1745667033331,-152.51527405,0.00019704,2]
[359038135,1745667033341,-193.85527883,0.00019708,2]
[359038137,1745667033351,-161.34309605,0.00019718,2]
[359038139,1745667033361,-200.0,0.0001974,2]
[359038141,1745667033371,-500.0,0.00019773,2]
[359038143,1745667033382,-207.4,0.00019779,2]
[359038145,1745667033393,-1200.0,0.00019789,2]
[359038147,1745667033403,-300.0,0.00019789,2]
[359038149,1745667033413,-8.24326701,0.0001979,2]
[359038468,1745667038274,-152.51527404,0.00019737,2]
[359038469,1745667038284,-991.75673299,0.0001979,2]
[359038470,1745667038294,-571.78370186,0.0001979,2]
[359038471,1745667038305,-685.78458746,0.0001979,2]
[359038472,1745667038316,-158.37961764,0.0001979,2]
[359038473,1745667038328,-850.0,0.0001979,2]
[359038474,1745667038340,-230.33477316,0.00019791,2]
[359038475,1745667038379,-41.31000445,0.00019791,2]
[359038476,1745667038391,-500.0,0.00019791,2]
[359038477,1745667038402,-400.0,0.00019791,2]
[359038478,1745667038411,-1.77999555,0.00019791,2]
[359038479,1745667038468,-398.22000445,0.00019791,2]
[359038480,1745667038477,-1978.67,0.00019791,2]
[359038481,1745667038487,-400.0,0.00019791,2]
[359038482,1745667038497,-400.0,0.00019791,2]
[359038483,1745667038507,-400.0,0.00019791,2]
[359038484,1745667038516,-400.0,0.00019791,2]
[359038485,1745667038528,-571.3,0.00019791,2]
[359038486,1745667038539,-909.49,0.00019791,2]
[359038488,1745667038548,-456.61,0.00019791,2]
[359038489,1745667038558,-681.74654555,0.00019791,2]
[359038523,1745667038926,-28.88345445,0.00019791,2]
[359038525,1745667038938,-400.0,0.00019791,2]
[359038527,1745667038947,-400.0,0.00019791,2]
[359038529,1745667038956,-480.82,0.00019791,2]
[359038531,1745667038967,-400.0,0.00019791,2]
[359038533,1745667038976,-544.56,0.00019791,2]
[359038535,1745667038987,-400.0,0.00019791,2]
[359038537,1745667038997,-400.0,0.00019791,2]
[359038539,1745667039006,-400.0,0.00019791,2]
[359038541,1745667039015,-400.0,0.00019791,2]
[359038543,1745667039025,-500.0,0.00019791,2]
[359038545,1745667039035,-400.0,0.00019791,2]
[359038547,1745667039044,-400.0,0.00019791,2]
[359038549,1745667039053,-483.82,0.00019791,2]
[359038551,1745667039062,-400.0,0.00019791,2]
[359038553,1745667039072,-400.0,0.00019791,2]
[359038555,1745667039082,-400.0,0.00019791,2]
[359038557,1745667039091,-400.0,0.00019791,2]
[359038559,1745667039100,-400.0,0.00019791,2]
[359038561,1745667039109,-551.35,0.00019791,2]
[359038562,1745667039119,-300.0,0.00019791,2]
[359038564,1745667039128,-400.0,0.00019791,2]
[359038566,1745667039137,-396.29625952,0.00019791,2]
[359038568,1745667039147,-400.0,0.00019791,2]
[359038570,1745667039156,-181.05139569,0.00019791,2]
[359038571,1745667039165,-400.0,0.00019791,2]
[359038573,1745667039174,-400.0,0.00019791,2]
[359038575,1745667039184,-812.99,0.00019791,2]
[359038577,1745667039194,-400.0,0.00019791,2]
[359038579,1745667039203,-400.0,0.00019791,2]
[359038581,1745667039213,-500.0,0.00019791,2]
[359038583,1745667039223,-464.78,0.00019791,2]
[359038585,1745667039233,-400.0,0.00019791,2]
[359038587,1745667039242,-400.0,0.00019791,2]
[359038589,1745667039251,-400.0,0.00019791,2]
[359038591,1745667039261,-400.0,0.00019791,2]
[359038594,1745667039271,-409.86,0.00019791,2]
[359038597,1745667039280,-400.0,0.00019791,2]
[359038599,1745667039291,-400.0,0.00019791,2]
[359038601,1745667039301,-400.0,0.00019791,2]
[359038603,1745667039311,-400.0,0.00019791,2]
[359038605,1745667039321,-983.69,0.00019791,2]
[359038607,1745667039330,-400.0,0.00019791,2]
[359038609,1745667039340,-400.0,0.00019791,2]
[359038611,1745667039350,-474.33,0.00019791,2]
[359038613,1745667039359,-709.25,0.00019791,2]
[359038615,1745667039369,-400.0,0.00019791,2]
[359038617,1745667039379,-1105.04,0.00019791,2]
[359038619,1745667039388,-400.0,0.00019791,2]
[359038621,1745667039398,-507.61,0.00019791,2]
[359038623,1745667039408,-400.0,0.00019791,2]
[359038625,1745667039417,-400.0,0.00019791,2]
[359038627,1745667039426,-500.0,0.00019791,2]
[359038629,1745667039436,-400.0,0.00019791,2]
[359038631,1745667039445,-400.0,0.00019791,2]
[359038633,1745667039454,-400.0,0.00019791,2]
[359038635,1745667039464,-400.0,0.00019791,2]
[359038637,1745667039473,-400.0,0.00019791,2]
[359038639,1745667039483,-400.0,0.00019791,2]
[359038640,1745667039492,-400.0,0.00019791,2]
[359038642,1745667039502,-500.0,0.00019791,2]
[359038644,1745667039511,-500.0,0.00019791,2]
[359038646,1745667039521,-685.81,0.00019791,2]
[359038648,1745667039530,-685.81,0.00019791,2]
[359038650,1745667039540,-685.81,0.00019791,2]
[359038652,1745667039549,-409.0,0.00019791,2]
[359038654,1745667039559,-440.09,0.00019791,2]
[359038656,1745667039569,-400.0,0.00019791,2]
[359038658,1745667039579,-400.0,0.00019791,2]
[359038660,1745667039588,-400.0,0.00019791,2]
[359038662,1745667039597,-400.0,0.00019791,2]
[359038664,1745667039607,-400.0,0.00019791,2]
[359038666,1745667039616,-500.0,0.00019791,2]
[359038668,1745667039626,-400.0,0.00019791,2]
[359038670,1745667039640,-400.0,0.00019791,2]
[359038672,1745667039650,-400.0,0.00019791,2]
[359038674,1745667039660,-190.50510688,0.00019791,2]
[359038676,1745667039671,-400.0,0.00019791,2]
[359038678,1745667039680,-400.0,0.00019791,2]
[359038680,1745667039689,-826.86,0.00019791,2]
[359038682,1745667039698,-417.24,0.00019791,2]
[359038684,1745667039711,-400.0,0.00019791,2]
[359038686,1745667039720,-400.0,0.00019791,2]
[359038688,1745667039730,-500.0,0.00019791,2]
[359038689,1745667039739,-478.01,0.00019791,2]
[359038691,1745667039748,-500.0,0.00019791,2]
[359038693,1745667039758,-400.0,0.00019791,2]
[359038695,1745667039767,-652.59,0.00019791,2]
[359038697,1745667039777,-400.0,0.00019791,2]
[359038699,1745667039787,-752.2,0.00019791,2]
[359038701,1745667039797,-700.24,0.00019791,2]
[359038703,1745667039806,-899.4,0.00019791,2]
[359038705,1745667039815,-400.0,0.00019791,2]
[359038707,1745667039825,-400.0,0.00019791,2]
[359038709,1745667039834,-432.63,0.00019791,2]
[359038711,1745667039843,-613.77,0.00019791,2]
[359038713,1745667039853,-333.08239048,0.00019791,2]
[359038715,1745667039862,-936.64,0.00019791,2]
[359038717,1745667039873,-400.0,0.00019791,2]
[359038719,1745667039882,-880.06,0.00019791,2]
[359038721,1745667039892,-400.0,0.00019791,2]
[359038723,1745667039902,-466.25,0.00019791,2]
[359038725,1745667039911,-728.55,0.00019791,2]
[359038727,1745667039921,-1355.63,0.00019791,2]
[359038729,1745667039930,-1280.01,0.00019791,2]
[359038731,1745667039939,-400.0,0.00019791,2]
[359038733,1745667039948,-1440.19,0.00019791,2]
[359038734,1745667039958,-549.13,0.00019791,2]
[359038736,1745667039968,-400.0,0.00019791,2]
[359038738,1745667039978,-965.93,0.00019791,2]
[359038740,1745667039987,-484.22,0.00019791,2]
[359038742,1745667039996,-1031.19,0.00019791,2]
[359038744,1745667040006,-639.58,0.00019791,2]
[359038746,1745667040016,-1044.45,0.00019791,2]
[359038748,1745667040025,-824.42,0.00019791,2]
[359038750,1745667040035,-212.94826942,0.00019791,2]
[359038752,1745667040044,-150.0,0.00019791,2]
[359038754,1745667040053,-150.0,0.00019791,2]
[359038756,1745667040063,-500.0,0.00019791,2]
[359038758,1745667040072,-500.0,0.00019791,2]
[359038760,1745667040081,-244.02166276,0.00019799,2]
[359038762,1745667040090,-211.24403675,0.00019799,2]
[359038764,1745667040100,-260.23377701,0.00019799,2]
[359038766,1745667040110,-500.0,0.00019799,2]
[359038768,1745667040119,-206.61041013,0.00019799,2]
[359038770,1745667040128,-500.0,0.00019799,2]
[359038772,1745667040137,-500.0,0.00019799,2]
[359038774,1745667040146,-500.0,0.00019799,2]
[359038776,1745667040155,-500.0,0.00019799,2]
[359038778,1745667040164,-389.1695579,0.00019799,2]
[359038780,1745667040174,-500.0,0.00019799,2]
[359038782,1745667040183,-300.0,0.00019799,2]
[359038783,1745667040192,-436.4854433,0.00019799,2]
[359038785,1745667040201,-700034.34649796,0.000198,2]
[359038788,1745667040214,-193.85527883,0.00019804,2]
[359038789,1745667040224,-161.34309605,0.00019809,2]
[359038791,1745667040233,-150.0,0.00019818,2]
[359038793,1745667040243,-500.0,0.00019818,2]
[359038795,1745667040252,-500.0,0.00019818,2]
[359038797,1745667040262,-2908.92614781,0.0001983,2]
[359038799,1745667040271,-2000.0,0.0001984,2]
[359038802,1745667040280,-150.0,0.00019846,2]
[359038805,1745667040291,-500.0,0.00019846,2]
[359038807,1745667040300,-500.0,0.00019846,2]
[359038809,1745667040310,-730.28498937,0.0001987,2]
[359038811,1745667040319,-257.12841915,0.00019873,2]
[359038812,1745667040328,-500.0,0.00019873,2]
[359038813,1745667040337,-500.0,0.00019873,2]
[359038814,1745667040347,-435.48514744,0.0001988,2]
[359038815,1745667040356,-896.7283,0.00019886,2]
[359038816,1745667040366,-455.4587,0.00019886,2]
[359038817,1745667040375,-1106.6617,0.00019886,2]
[359038818,1745667040384,-1614.3703,0.00019886,2]
[359038819,1745667040394,-685.81,0.00019887,2]
[359038820,1745667040403,-3248.06686756,0.00019889,2]
[359038821,1745667040412,-180.92928944,0.00019899,2]
[359038822,1745667040421,-174.05559043,0.00019899,2]
[359038823,1745667040431,-161.34309605,0.00019899,2]
[359038824,1745667040440,-593.9887,0.000199,2]
[359038825,1745667040449,-673.6255,0.000199,2]
[359038826,1745667040458,-33921.79591304,0.000199,2]
[359038827,1745667040468,-471.79628651,0.000199,2]
[359038828,1745667040478,-1543.65881158,0.000199,2]
[359038829,1745667040488,-193.85527883,0.000199,2]
[359038830,1745667040497,-5898.16736377,0.000199,2]
[359038831,1745667040506,-151.43236583,0.000199,2]
[359038833,1745667040516,-500.0,0.00019901,2]
[359038835,1745667040525,-500.0,0.00019901,2]
[359038837,1745667040535,-500.0,0.00019928,2]